Cogmind - Beta 13 X1 *** ADVENTURER MODE // 2023.07.21 @ 12:25:00 // Winter2022/Polymind Player: Minty Result: Destroyed by as-46318 with Assembled Rifle Performance ------------- Evolutions (0) 0 Regions Visited (2) 400 Robots Destroyed (0) 0 Value Destroyed (0) 0 Prototype IDs (0) 0 Alien Tech Used (0) 0 Bonus (820) 820 TOTAL SCORE: 1180 Bonus ------- Polymind Skill 820 Cogmind --------- Core Integrity 0/250 Matter 100/100 Energy 50/50 System Corruption 0% Temperature Cool (0) Movement Hovering (60) Location -10/Mines Parts ------- > --- POWER (0) -------- (None) > --- PROPULSION (1) --- Assembled Hover Unit > --- UTILITY (0) ------ (None) > --- WEAPON (1) ------- Assembled Blade > --- INVENTORY (1) ---- (None) Peak State ------------ > --- POWER ------------ Light Ion Engine > --- PROPULSION ------- Wheel Wheel > --- UTILITY ---------- Improved Terrain Scanner Seismic Detector > --- WEAPON ----------- Mining Laser > --- INVENTORY -------- (None) [Rating: 8] Favorites ----------- Power Light Ion Engine Engine Light Ion Engine Propulsion Wheel Treads Light Treads Wheel Wheel Hover Unit Assembled Hover Unit Utility Improved Terrain Scanner Device Improved Terrain Scanner Storage Medium Storage Unit Processor Transport Network Coupler Weapon Mining Laser Special Weapon Mining Laser Slashing Weapon Assembled Blade Build | -11 -10 -10 ------- Run | Jun Mat Min Slots Evolved . | . . . Power . | . . . Propulsion . | . . . Utility . | . . . Weapon . | . . . Parts Attached . | . . . Power . | . . . Engine . | . . . Core . | . . . Reactor . | . . . Propulsion . | . . . Treads . | . . . Leg . | . . . Wheel . | . . . Hover . | . . . Flight . | . . . Utility . | . . . Device . | . . . Storage . | . . . Processor . | . . . Hackware . | . . . Protection . | . . . Artifact . | . . . Weapon . | . . . Energy Gun . | . . . Energy Cannon . | . . . Ballistic Gun . | . . . Ballistic Cannon . | . . . Launcher . | . . . Special Weapon . | . . . Impact Weapon . | . . . Slashing Weapon . | . . . Piercing Weapon . | . . . Special Melee Weapon . | . . . Unidentified Prototypes . | . . . Parts Lost . | . . . Power . | . . . Propulsion . | . . . Utility . | . . . Weapon . | . . . Highest Loss Streak . | . . . To Critical Strikes . | . . . Average Slot Usage (%) 93 | . 92 100 Engine 14 | . 14 8 Treads 7 | . 7 16 Wheel 22 | . 23 . Hover 1 | . . 25 Device 25 | . 27 8 Storage 3 | . 3 8 Processor 3 | . 3 8 Special Weapon 10 | . 11 . Slashing Weapon 1 | . . 25 Naked Turns 28 | . 28 . Heaviest Build 15 | . 15 15 Greatest Support 46 | 3 46 46 Greatest Overweight (x) . | . . . Average Overweight (x) . | . . . Largest Inventory Capacity 6 | . 6 6 Average Capacity 1 | . 1 2 Most Carried 6 | . 6 6 Average Carried 1 | . 1 2 Final Capacity 6 | . 6 1 Final Carried 6 | . 6 . Class Distribution -------------------- 63% | Tunneler 22% | Hauler 9% | Cogmind 4% | Assembled Dominant Class ---------------- Tunneler | -10/Materials Assembled | -10/Mines Resources | -11 -10 -10 ----------- Run | Jun Mat Min Matter Collected . | . . . Remotely . | . . . Salvage Created 38 | . . 38 Parts . | . . . Haulers Intercepted . | . . . Recyclers Shooed . | . . . Parts Field Recycled . | . . . Retrieved Matter . | . . . Parts Self-Destructed . | . . . Prevented . | . . . Kills | -11 -10 -10 ------- Run | Jun Mat Min Combat Hostiles Destroyed 2 | . . 2 Melee 2 | . . 2 Classes Destroyed 1 | . . 1 Assembled 2 | . . 2 Best Kill Streak 2 | . . 2 Combat Bots Only 2 | . . 2 Max Kills in Single Turn 1 | . . 1 Gunslinging . | . . . Exploded . | . . . Melee 1 | . . 1 Uniques/NPCs Destroyed . | . . . Combat | -11 -10 -10 -------- Run | Jun Mat Min Damage Taken 337 | . . 337 Core 257 | . . 257 Absorbed by Shields . | . . . Ignored by Resistances 31 | . . 31 Core Remaining (%) 100 | 100 . . Volleys Fired 2 | . 2 . Largest 1 | . 1 . Hottest 100 | . 100 . Shots Fired 2 | . 2 . Gun . | . . . Cannon . | . . . Launcher . | . . . Special 2 | . 2 . Kinetic . | . . . Thermal 2 | . 2 . Explosive . | . . . Electromagnetic . | . . . Robot Hit Streak . | . . . Robot Miss Streak . | . . . Penetration Max . | . . . Secondary Targets . | . . . Shots Hit Robots 4 | . . 4 Core Hits 2 | . . 2 Critical Kills . | . . . Critical Parts Destroyed . | . . . Critical Strikes . | . . . Melee Attacks 5 | . . 5 Impact . | . . . Slashing 5 | . . 5 Piercing . | . . . Sneak Attacks . | . . . Combat Hostiles . | . . . Follow-up Attacks . | . . . Damage Inflicted 170 | . . 170 Guns . | . . . Cannons . | . . . Explosions . | . . . Melee 170 | . . 170 Ramming . | . . . Kinetic . | . . . Thermal . | . . . Explosive . | . . . Electromagnetic . | . . . Impact . | . . . Slashing 170 | . . 170 Piercing . | . . . Highest Corruption . | . . . Average Corruption . | . . . Corruption Purged . | . . . Corruption Blocked . | . . . Overload Shots . | . . . Overflow Damage 2 | . . 2 Projectiles . | . . . Explosions . | . . . Melee 2 | . . 2 Knockbacks . | . . . Impact . | . . . Kinetic . | . . . Secondary . | . . . Self-Inflicted Damage . | . . . Shots . | . . . Rammed . | . . . Targets Rammed . | . . . Kicked . | . . . Crushed . | . . . Highest Temperature 150 | . 150 . Average Temperature 76 | . 76 . Received Heat Transfer 80 | . . 80 Siege Activations . | . . . Robots Corrupted . | . . . Combat Hostiles . | . . . Parts Fried . | . . . Impact Corruptions . | . . . Robots Melted . | . . . Combat Hostiles . | . . . Parts Melted . | . . . Heat Transferred . | . . . Parts Sabotaged . | . . . Parts Stolen . | . . . Parts Stripped . | . . . Power Chain Reactions . | . . . Missiles Intercepted . | . . . Alert | -11 -10 -10 ------- Run | Jun Mat Min Peak Influence 2 | . 2 . Initial . | . . . Average . | . . . Maximum Alert Level . | . . . Low Security (%) 100 | . 100 100 Level 1 . | . . . Level 2 . | . . . Level 3 . | . . . Level 4 . | . . . Level 5 . | . . . High Security . | . . . Max Security . | . . . Squads Dispatched . | . . . Investigation . | . . . Extermination . | . . . Reinforcement . | . . . Assault . | . . . Garrison . | . . . Intercept . | . . . Searches Triggered . | . . . Construction Impeded . | . . . Haulers Reinforced . | . . . Active Scanning Responses . | . . . Cargo Convoy Interrupts . | . . . Stealth | -11 -10 -10 --------- Run | Jun Mat Min Distress Signals . | . . . Communications Jammed . | . . . Distress Signals . | . . . Times Spotted 19 | . 1 18 Peak Tracking Total 16 | . 3 16 Tactical Retreats . | . . . Traps | -11 -10 -10 ------- Run | Jun Mat Min Traps Triggered . | . . . Indirectly . | . . . Trap Hack Attempts . | . . . Triggered . | . . . Disarmed . | . . . Reprogrammed . | . . . Reused . | . . . Traps Extracted . | . . . Installed . | . . . Triggered . | . . . Machines | -11 -10 -10 ---------- Run | Jun Mat Min Machines Disabled . | . . . Max in Single Turn . | . . . Machines Repaired . | . . . Machines Sabotaged . | . . . Overloaded Fab Kills . | . . . Hacking | -11 -10 -10 --------- Run | Jun Mat Min Machines Accessed 1 | . 1 . Terminals 1 | . 1 . Fabricators . | . . . Repair Stations . | . . . Recycling Units . | . . . Scanalyzers . | . . . Garrison Access . | . . . Total Hacks 2 | . 2 . Successful . | . . . Failed 2 | . 2 . Catastrophic . | . . . Database Lockouts . | . . . Manual 2 | . 2 . Terminals 2 | . 2 . Fabricators . | . . . Repair Stations . | . . . Recycling Units . | . . . Scanalyzers . | . . . Garrison Access . | . . . Terminal Hacks . | . . . Fabricator Hacks . | . . . Repair Station Hacks . | . . . Recycling Unit Hacks . | . . . Scanalyzer . | . . . Garrison Access Hacks . | . . . Unauthorized Hacks . | . . . Terminals . | . . . Fabricators . | . . . Repair Stations . | . . . Recycling Units . | . . . Scanalyzers . | . . . Garrison Access . | . . . Data Cores Recovered . | . . . Used . | . . . Hacking Detections 1 | . 1 . Full Trace Events 1 | . 1 . Feedback Events . | . . . Feedback Blocked . | . . . Robot Schematics Acquired . | . . . Robots Built . | . . . Authchips . | . . . Time . | . . . Total Robot Build Rating . | . . . Part Schematics Acquired . | . . . Parts Built . | . . . Authchips . | . . . Time . | . . . Total Part Build Rating . | . . . Parts Repaired . | . . . Time . | . . . Parts Recycled . | . . . Recycled Matter . | . . . Retrieved Matter . | . . . Retrieved Components . | . . . Parts Scanalyzed . | . . . Part Schematics Acquired . | . . . Parts Damaged . | . . . Bothacking | -11 -10 -10 ------------ Run | Jun Mat Min Used RIF Installer . | . . . Robots Hacked 1 | . 1 . Non-combat 1 | . 1 . Combat . | . . . Robot Hacks Applied 1 | . 1 . locate_stockpiles 1 | . 1 . Relay Couplers Released . | . . . Fabnet Peak Effective % . | . . . Robots Rewired . | . . . Allies Hacked . | . . . Hacks Repelled . | . . . Allies | -11 -10 -10 -------- Run | Jun Mat Min Total Allies . | . . . Largest Group . | . . . Highest-Rated Group . | . . . Highest-Rated Ally . | . . . Total Orders . | . . . Ally Attacks . | . . . Total Damage . | . . . Kills . | . . . Allies Corrupted . | . . . Allies Melted . | . . . Intel | -11 -10 -10 ------- Run | Jun Mat Min Robot Analysis Total 3 | . 2 1 Derelict Logs Recovered . | . . . Drone Launches . | . . . Drone Recoveries . | . . . Exploration | -11 -10 -10 ------------- Run | Jun Mat Min Turns Passed 304 | . 283 21 Spaces Moved 276 | 1 266 9 Core 56 | 1 54 1 Treads 43 | . 39 4 Legs . | . . . Wheels 173 | . 173 . Hover 4 | . . 4 Flight . | . . . Fastest Speed 50 | 50 50 50 Average Speed 86 | 50 85 103 Slowest Speed 160 | 50 160 160 Overloaded Moves . | . . . Propulsion Burnouts . | . . . Robots Hopped . | . . . Cave-ins Triggered . | . . . Exploration Rate (%) 17 | 2 46 4 Regions Visited 2 Branch Regions 1 Pre-discovered Areas . | . . . Known Exits Taken . | . . . Unknown Exits Taken 2 | 1 1 . Scrap Searched . | . . . Spaces Dug 2 | . 2 . Terrain Destroyed 2 | . 2 . Melee . | . . . Projectile 2 | . 2 . AOE . | . . . Terrain Rammed . | . . . Walls Destroyed . | . . . Machines Disabled . | . . . Actions | -11 -10 -10 --------- Run | Jun Mat Min Total 329 | . 315 14 Wait 3 | . 3 . Move 274 | . 265 9 Hop . | . . . Pick Up . | . . . Fast Attach . | . . . Attach . | . . . Detach . | . . . Swap . | . . . Drop . | . . . Fire 2 | . 2 . Melee 5 | . . 5 Ram . | . . . Kick . | . . . Crush . | . . . Escape Stasis . | . . . Rewire . | . . . Trap . | . . . Miscellaneous 45 | . 45 . Route ------- -11/Junkyard -10/Materials (discovered 2 exits: [*Min] / [*Sub]) -10/Mines History --------- Turn | Location | Event 1 | -11/Junkyard | Discovered new exit (range 0) 1 | -11/Junkyard | Entered Materials 85 | -10/Materials | Discovered new exit (range 3) 197 | -10/Materials | Discovered new exit (range 8) 284 | -10/Materials | Entered Mines 285 | -10/Mines | Assembled infested the area 298 | -10/Mines | Core integrity fell below 50% 301 | -10/Mines | Core integrity fell below 20% 305 | -10/Mines | Destroyed by as-46318 with Assembled Rifle Last Messages --------------- 00218_ K-01 Serf collects debris. 00221_ Released control of T-07 Excavator. 00222_ Took control of A-02 Transporter. 00222_ Extracted analysis data for A-02 Transporter. 00223_ T-07 Excavator reactivates. 00260_ Connecting with Terminal... LOCATION=UNKNOWN GOAL=ESCAPE 00285_ ALERT: Infestation in the mines, dispatching Demolisher response squad. 00285_ S-10 Pest destroyed. 00291_ Released control of A-02 Transporter. 00291_ Took control of as-33171. 00291_ Extracted analysis data for Assembled. 00292_ A-02 Transporter reactivates. 00294_ Destroyed Asb. Hover Unit. 00296_ as-86696 destroyed. 00300_ Knocked back. 00301_ Destroyed Asb. Hover Unit. 00304_ as-23042 destroyed. Map ----- +----------------------------------------------------+ | ??????????????????????????????????????? | | ??????????????????????????????????????? | | ??????????????????????????????????????? | | ??????????????????????????????????????? | | ??????????????????????????????????????? | | ??????????????????????????????????????? | | ??????????????????????????????????????? | | ??????????????????????????????????????? | | ??????????????????????????????????????? | | ??????????????????????????????????????? | | ??????????????????????????????????????? | | ??????????????????????????????????????? | | ??????????????????????????????????????? | | ??????????????????????????????????????? | | ??????????????????????????????????????? | | ??????????????????????????????????????? | | ??????????????????????????????????????? | | ??????????????????????????????????????? | | ??????????????????????????????????????? | | ?????????????####?????????????????????? | | ???????###???? a ?????????????????????? | | ???????? ???# #?????????????????????? | | ?????????#= ??# ###???????????????????? | | ?????????#%=### #???????????????????? | | ????????##[aaa% #???????????????????? | | ????????# *%=aa #???????????????????? | | ???# ==aa ####???????????????????? | | ???# [ ##??????????????????????? | | ???## ##???????????????????????? | | ????# #?????????????????????????? | | ????# #??????????????????????????? | | ????# ???????????????????????????? | | ????## ????????????????????????????? | | ?????## #????????????????????????????? | | ??????###?????????????????????????????? | | ??????????????????????????????????????? | | ??????????????????????????????????????? | | ??????????????????????????????????????? | | | | | | | | | | | | | | | | | | | | | | | | | +----------------------------------------------------+ Best States ------------- Heat Dissipation 35 Energy Generation 20 Energy Capacity 175 Matter Stores 100 Matter Capacity 100 Sight Range 16 Terrain Scan Range 16 Terrain Scan Density 10 Additional Mass Support 6 Resistance: KI 20 Resistance: TH 20 Resistance: EX 20 Resistance: EM 20 Resistance: I 20 Resistance: S 20 Resistance: P 20 Evasion (%) 50 Recoil Reduction 2 Offensive Hacking 10 Item Schematics ----------------- None Robot Schematics ------------------ None Fabricated ------------ Nothing Alien Tech Used ----------------- None Achievements -------------- None Challenges ------------ None Polymind | -11 -10 -10 ---------- Run | Jun Mat Min Hosts 3 | . 2 1 Combat Hostiles 1 | . . 1 Allies . | . . . Unique Host Classes 3 | . 2 1 Average Host Suspicion 14 | . 15 . Unsuspicious Activity 287 | . 229 58 Returns to Shadow . | . . . Fuzzy Dispatches . | . . . Protomatter Created 8 | . . 8 Used 26 | . 10 16 Decayed . | . . . Highest Spend 16 | . 5 16 Top 5 Hosts by Kills: as-33171 (-10/Mines: 2) Game ------ Seed AntimatterChipNanosword Manual? 0 Play Time 00:02:31 Cumulative 480.7 hours Start 2023.07.21 @ 12:23:02 End 2023.07.21 @ 12:25:00 Sessions 1 Manual Loads 0 Difficulty Adventurer Special Mode Winter2022/Polymind Game No. 390 Rogue 167 Adventurer 80 Explorer 143 Win Type - Total 22 Types 19/0/2/0/0/0/0/1/0 Lore% 69 Gallery% 88 Achievement% 71 Wizard Run 0 Options --------- ASCII 0 Keyboard 1 Movement Numpad Keybinds 0 Fullscreen 2 Font 18/X11Bold Map View 76x50 Tactical HUD 1 Map Filters NONE Filters NONE Steam 1 RUN: e914add6-fad7-435c-9477-eb087e47ad1f